bitfinex/quotes_ETHUSD_20250523
["timestamp","ask_amount","ask_price","bid_price","bid_amount"]
[1747975593382,3.7292138,2681.6,2681.4,8.0]
[1747975593686,3.72873974,2681.9,2681.4,8.0]
[1747975593891,3.72866505,2682.0,2681.5,2.4436]
[1747975594096,3.72857862,2682.0,2681.5,16.437]
[1747975594700,3.72857862,2682.0,2681.6,1.3106]
[1747975595102,1.3585,2682.0,2681.4,8.0]
[1747975595399,3.72901667,2681.7,2681.3,1.3106]
[1747975595698,3.72901667,2681.7,2681.5,8.0]
[1747975596018,3.72893732,2681.8,2681.5,8.0]
[1747975596224,1.3585,2682.0,2681.5,8.0]
[1747975596372,3.72882599,2681.9,2681.5,8.0]
[1747975596563,3.72885987,2681.8,2681.5,8.0]
[1747975598661,1.4109,2682.2,2681.5,8.0]
[1747975598917,3.72908003,2681.7,2681.5,8.0]
[1747975599266,3.72890001,2681.8,2681.5,8.0]
[1747975599784,3.72911694,2681.6,2681.5,8.0]
[1747975600199,3.72911694,2681.6,2681.5,24.375]
[1747975600368,3.72903766,2681.7,2681.5,24.375]
[1747975601017,1.4109,2682.2,2681.5,24.375]
[1747975601199,3.72842175,2682.1,2681.5,24.375]
[1747975601503,3.72911694,2681.6,2681.5,24.375]
[1747975601681,3.72903276,2681.7,2681.5,24.375]
[1747975602104,3.72872696,2681.9,2681.5,24.375]
[1747975602507,3.72852327,2682.1,2681.5,24.375]
[1747975602665,1.4066,2682.5,2681.7,1.3463]
[1747975602869,3.72865359,2682.0,2681.7,1.3463]
[1747975603195,3.72865359,2682.0,2681.8,8.0]
[1747975604216,3.72824173,2682.3,2681.8,8.0]
[1747975605672,1.4283,2682.8,2682.0,1.3172]
[1747975606017,3.72822403,2682.3,2682.1,16.87958935]
[1747975606195,1.4283,2682.8,2682.1,16.375]
[1747975606397,3.72738617,2682.9,2682.3,3.72803241]
[1747975606616,1.3315,2683.5,2682.3,1.32517455]
[1747975606823,0.43652479,2684.3,2682.9,11.18193]
[1747975607006,0.43652479,2684.3,2683.1,11.72703216]
[1747975607210,1.82165424,2684.7,2683.8,9.3008]
[1747975607429,3.72522563,2684.5,2683.8,40.57586006]
[1747975608334,3.72529055,2684.4,2683.8,36.8498]
[1747975608534,3.72513743,2684.5,2683.8,40.57586006]
[1747975608731,3.72499358,2684.6,2683.8,40.57586006]
[1747975608935,3.72499358,2684.6,2683.8,41.16783103]
[1747975609091,3.72499358,2684.6,2683.8,43.73996103]
[1747975609799,3.72510338,2684.5,2683.8,43.73996103]
[1747975610354,3.72551042,2684.2,2683.8,11.87293]
[1747975610635,3.72536073,2684.4,2683.8,9.3008]
[1747975610795,3.72471194,2684.8,2683.8,35.541]
[1747975610796,3.72472949,2684.8,2683.8,35.541]
[1747975610997,3.72552617,2684.2,2683.8,35.541]
[1747975611336,3.72524643,2684.4,2683.8,35.541]
[1747975611539,3.72539735,2684.3,2683.8,24.37]
[1747975611737,3.72546649,2684.3,2683.8,35.541]
[1747975612523,3.72525611,2684.4,2683.8,35.541]
[1747975612940,1.3523,2684.9,2683.9,8.0]
[1747975613099,5.0769441,2684.9,2684.1,8.0]
[1747975613633,5.0769441,2684.9,2684.1,11.72560216]
[1747975614162,1.3523,2684.9,2684.1,8.0]
[1747975614308,1.3523,2684.9,2684.3,11.72527753]
[1747975614506,1.3523,2684.9,2684.5,8.0]
[1747975615003,1.3523,2684.9,2684.3,8.0]
[1747975615205,1.3523,2684.9,2684.2,20.09046965]
[1747975615445,1.3523,2684.9,2684.5,8.0]
[1747975616119,0.05,2684.9,2684.7,8.0]
[1747975616310,0.05,2684.9,2684.8,24.365]
[1747975618017,0.05,2684.9,2684.8,8.0]
[1747975618249,0.05,2684.9,2684.8,24.363]
[1747975618411,0.05,2684.9,2684.8,8.0]
[1747975618612,0.05,2684.9,2684.8,24.363]
[1747975618807,0.05,2684.9,2684.8,26.10397647]
[1747975619034,0.05,2684.9,2684.8,31.20334869]
[1747975619636,0.6667,2685.5,2685.1,8.0]
[1747975619947,0.6667,2685.5,2685.1,11.72424054]
[1747975620143,0.6667,2685.5,2685.2,3.72410485]
[1747975620370,0.6667,2685.5,2685.4,8.0]
[1747975621444,3.7239603,2685.4,2685.3,16.36]
[1747975621653,5.1386603,2685.4,2685.3,16.36]
[1747975622021,4.39041228,2685.5,2685.3,16.36]
[1747975622363,0.6667,2685.5,2685.3,16.36]
[1747975622655,3.72384002,2685.4,2685.3,8.0]
[1747975622871,4.39040472,2685.5,2685.0,16.078]
[1747975623024,3.72425607,2685.1,2685.0,16.078]
[1747975623225,3.72425607,2685.1,2685.0,40.438]
[1747975623634,5.06245607,2685.1,2685.0,24.078]
[1747975623836,5.06245607,2685.1,2685.0,40.437]
[1747975624044,3.72424573,2685.2,2685.0,40.437]
[1747975624267,3.72425607,2685.1,2685.0,32.437]
[1747975624773,1.3382,2685.4,2685.0,16.078]
[1747975624925,3.72425607,2685.1,2685.0,16.078]
[1747975625127,5.15015607,2685.1,2684.7,8.0]
[1747975625366,0.74483765,2685.0,2684.4,16.3]
[1747975625660,1.4259,2685.1,2684.0,8.0]
[1747975625859,3.72448503,2685.0,2684.3,1.3747]
[1747975626065,3.72448503,2685.0,2684.4,4.66268408]
[1747975626363,3.72462063,2684.9,2684.4,0.93747]
[1747975626563,1.4259,2685.1,2684.4,0.93747]
[1747975626860,1.4259,2685.1,2684.5,3.72505388]
[1747975627035,3.7245018,2685.0,2684.6,16.299]
[1747975627432,1.4259,2685.1,2684.6,16.299]
[1747975627835,1.4259,2685.1,2684.7,16.299]
[1747975628667,3.72402821,2685.3,2684.8,8.0]
[1747975628981,0.6667,2685.5,2684.9,21.17316219]
[1747975629183,4.39044696,2685.5,2684.9,21.17316219]
[1747975629392,0.6667,2685.5,2684.9,21.17316219]
[1747975629542,0.6667,2685.5,2685.0,11.72438094]
[1747975629886,0.6667,2685.5,2685.0,12.72830438]
[1747975630076,4.39041718,2685.5,2685.0,9.00392344]
[1747975631006,0.6667,2685.5,2685.0,12.72830505]
[1747975631650,0.6667,2685.5,2685.0,12.72825938]
[1747975631954,4.39049002,2685.5,2685.2,8.0]
[1747975632287,4.39049002,2685.5,2685.4,8.0]
[1747975633696,0.6667,2685.5,2685.4,8.0]
[1747975634191,4.39040135,2685.5,2685.0,8.0]
[1747975634391,3.72411738,2685.2,2685.1,16.298]
[1747975634589,3.72411738,2685.2,2685.1,8.0]
[1747975634791,3.72411738,2685.2,2685.1,24.298]
[1747975634992,3.72411738,2685.2,2685.1,24.297]
[1747975635655,3.72397869,2685.3,2685.2,8.0]
[1747975636151,3.72397869,2685.3,2685.2,24.297]
[1747975636547,3.72397869,2685.3,2685.2,8.0]
[1747975636795,3.72397869,2685.3,2685.2,24.297]
[1747975637290,5.09757869,2685.3,2685.2,24.297]
[1747975637699,5.09757869,2685.3,2685.2,8.0]
[1747975637916,3.72439478,2685.0,2684.9,16.074]
[1747975638200,5.09239478,2685.0,2684.9,16.074]
[1747975638696,3.72481096,2684.7,2684.6,24.88897097]
[1747975639160,5.08691096,2684.7,2684.6,0.59197097]
[1747975640489,3.72508847,2684.5,2684.4,16.297]
[1747975641065,3.72525247,2684.4,2684.2,0.59197097]
[1747975641271,3.72512856,2684.5,2684.4,8.0]
[1747975643385,3.7255048,2684.2,2684.0,0.59197097]
[1747975643584,3.72541734,2684.3,2684.1,16.298]
[1747975643756,3.7255048,2684.2,2684.0,0.59197097]
[1747975643962,5.08694251,2684.7,2684.1,16.3]
[1747975644228,1.3621,2684.7,2684.1,16.3]
[1747975644369,1.2616,2685.0,2684.2,5.47228099]
[1747975644569,3.72448281,2685.0,2684.3,3.72527031]
[1747975644772,3.72425607,2685.1,2684.4,14.88708962]
[1747975644974,3.72448396,2685.0,2684.5,1.54212878]
[1747975645178,1.2616,2685.2,2684.6,16.3]
[1747975645579,3.72468003,2684.8,2684.6,16.3]
[1747975645779,3.72459216,2684.9,2684.6,16.3]
[1747975646187,3.72476067,2684.8,2684.4,0.59197097]
[1747975646387,3.7245829,2684.9,2684.7,27.462]
[1747975646593,3.72448183,2685.0,2684.7,27.462]
[1747975646905,0.6667,2685.5,2684.8,17.5126]
[1747975647205,3.72417754,2685.2,2684.8,17.5126]
[1747975647391,0.6667,2685.5,2684.8,17.5126]
[1747975647703,3.72425013,2685.2,2684.9,8.0]
[1747975647906,3.72426467,2685.1,2684.9,8.0]
[1747975649616,3.72416265,2685.2,2684.9,8.0]
[1747975650206,3.7238581,2685.4,2684.9,9.00382344]
[1747975650807,3.7238581,2685.4,2685.1,8.0]
[1747975651103,4.39048745,2685.5,2685.1,8.0]
[1747975651497,0.6667,2685.5,2685.1,8.0]
[1747975651721,4.39040252,2685.5,2685.1,10.7462]
[1747975653018,3.72384023,2685.4,2685.1,10.7462]
[1747975653416,4.39044204,2685.5,2685.1,10.7462]
[1747975653621,0.6667,2685.5,2685.1,10.7462]
[1747975653840,4.39041106,2685.5,2685.1,10.7462]
[1747975654000,0.6667,2685.5,2685.2,1.00382344]
[1747975654532,3.72425607,2685.1,2685.0,0.59197097]
[1747975654704,3.72422975,2685.2,2685.0,24.88997097]
[1747975654907,0.6667,2685.5,2685.1,8.0]
[1747975655128,3.72411738,2685.2,2685.1,8.0]
[1747975655331,3.72406122,2685.3,2685.1,27.407]
[1747975655508,0.6667,2685.5,2685.1,30.2068971]
[1747975655844,0.6667,2685.5,2685.3,3.72393652]
[1747975656131,0.6667,2685.5,2685.2,4.93663849]
[1747975656299,0.6667,2685.5,2685.3,3.72397764]
[1747975656699,0.6667,2685.5,2685.4,11.72384002]
[1747975656932,0.6667,2685.5,2685.4,12.67396636]
[1747975657434,0.6667,2685.5,2685.4,13.88656636]
[1747975660337,0.6667,2685.5,2685.4,2.16272634]
[1747975660739,0.6667,2685.5,2685.4,37.56472634]
[1747975661241,0.6667,2685.5,2685.4,41.28856636]
[1747975661405,0.6667,2685.5,2685.4,37.56472634]
[1747975661716,0.6667,2685.5,2685.4,41.28856636]
[1747975661909,0.05,2685.9,2685.6,3.72343501]
[1747975662114,0.05,2685.9,2685.5,10.7998971]
[1747975662315,3.77317856,2685.9,2685.5,10.7998971]
[1747975662539,0.05,2685.9,2685.5,14.52351109]
[1747975662724,0.05,2685.9,2685.6,4.67360013]
[1747975662930,0.05,2685.9,2685.8,1.2126]
[1747975663127,0.05,2685.9,2685.8,25.2816]
[1747975663729,5.1439468,2685.9,2685.8,40.311]
[1747975663943,6.03064294,2685.9,2685.8,40.311]
[1747975664237,6.03064294,2685.9,2685.8,16.069]
[1747975664739,6.03064294,2685.9,2685.8,32.311]
[1747975664938,0.05,2685.9,2685.8,40.311]
[1747975665110,3.7731468,2685.9,2685.8,40.311]
[1747975665540,0.05,2685.9,2685.8,40.311]
[1747975665746,3.7731468,2685.9,2685.8,40.311]
[1747975666134,3.7731468,2685.9,2685.8,24.069]
[1747975666334,0.05,2685.9,2685.8,40.311]
[1747975668152,0.05,2685.9,2685.8,51.47]
[1747975668857,0.05,2685.9,2685.8,40.311]
[1747975671553,3.7731468,2685.9,2685.8,40.311]
[1747975671744,3.7731468,2685.9,2685.8,24.069]
[1747975671745,0.05,2685.9,2685.8,24.069]
[1747975672077,0.05,2685.9,2685.8,51.468]
[1747975672848,0.05,2685.9,2685.8,24.069]
[1747975673042,0.05,2685.9,2685.8,51.468]
[1747975675384,0.05,2685.9,2685.8,24.069]
[1747975675587,0.05,2685.9,2685.8,53.8749]
[1747975676077,0.05,2685.9,2685.8,26.4759]
[1747975676261,0.05,2685.9,2685.8,51.468]
[1747975678067,3.7731468,2685.9,2685.8,40.31]
[1747975678256,3.7731468,2685.9,2685.8,72.860091]
[1747975678462,0.05,2685.9,2685.8,72.860091]
[1747975680596,3.7731468,2685.9,2685.8,72.860091]
[1747975680801,0.05,2685.9,2685.8,72.860091]
[1747975682406,3.7731468,2685.9,2685.8,72.860091]
[1747975682590,0.05,2685.9,2685.8,72.860091]
[1747975683224,3.7731468,2685.9,2685.8,72.860091]
[1747975683368,3.7731468,2685.9,2685.8,56.619091]
[1747975686489,0.05,2685.9,2685.8,56.619091]
[1747975687017,3.7731468,2685.9,2685.8,56.619091]
[1747975687399,3.7731468,2685.9,2685.8,72.798091]
[1747975687719,3.7731468,2685.9,2685.8,64.798091]
[1747975689231,3.7731468,2685.9,2685.8,48.619091]
[1747975689422,5.81536306,2685.9,2685.8,64.798091]
[1747975690311,5.0657468,2685.9,2685.8,64.798091]
[1747975690830,5.0657468,2685.9,2685.8,48.619091]
[1747975691035,5.0657468,2685.9,2685.8,64.798091]
[1747975692140,5.0657468,2685.9,2685.8,48.619091]
[1747975693819,5.0657468,2685.9,2685.8,32.550091]
[1747975694219,5.94462306,2685.9,2685.8,32.550091]
[1747975697044,5.0657468,2685.9,2685.8,32.550091]
[1747975697219,3.7731468,2685.9,2685.8,32.550091]
[1747975698023,3.7731468,2685.9,2685.8,48.730091]
[1747975705373,3.7731468,2685.9,2685.8,32.550091]
[1747975705567,3.7731468,2685.9,2685.8,48.730091]
[1747975706991,6.05143306,2685.9,2685.8,32.550091]
[1747975711192,5.1673468,2685.9,2685.8,32.550091]
[1747975712404,0.05,2685.9,2685.8,43.709091]
[1747975712705,0.05,2686.9,2686.3,1.2859]
[1747975712866,3.7219888,2686.8,2686.4,43.409]
[1747975713066,3.77180601,2686.9,2686.4,43.409]
[1747975713900,3.77180601,2686.9,2686.5,8.0]
[1747975714101,0.05,2686.9,2686.5,8.0]
[1747975714409,0.05,2686.9,2686.7,1.2864]
[1747975714700,3.72120782,2687.3,2686.9,8.0]
[1747975714876,3.72109613,2687.4,2687.0,16.181]
[1747975715263,3.72133121,2687.3,2687.0,16.181]
[1747975715464,3.72120715,2687.3,2687.0,16.181]
[1747975715886,1.82165424,2687.7,2687.1,2.4181]
[1747975716089,3.72120715,2687.3,2687.2,11.159]
[1747975716289,5.54238914,2687.7,2687.3,1.2864]
[1747975716567,5.54238914,2687.7,2687.4,16.066]
[1747975716792,3.72079178,2687.6,2687.5,16.11]
[1747975717415,1.82165424,2687.7,2687.5,16.11]
[1747975717596,3.72079178,2687.6,2687.5,16.11]
[1747975717770,3.72079178,2687.6,2687.5,25.44192344]
[1747975717967,1.82165424,2687.7,2687.5,25.44192344]
[1747975718203,1.82165424,2687.7,2687.6,1.2864]
[1747975718595,2.41161157,2688.4,2687.7,9.2864]
[1747975718911,0.05,2688.9,2688.4,1.2864]
[1747975719068,3.7195131,2688.6,2688.5,35.264]
[1747975719264,3.71940787,2688.6,2688.5,35.264]
[1747975719478,3.71935493,2688.7,2688.5,35.264]
[1747975719684,6.68731132,2688.8,2688.5,35.264]
[1747975719883,6.68731882,2688.8,2688.5,35.95346]
[1747975720194,2.96813731,2688.8,2688.5,35.95346]
[1747975720399,2.96813731,2688.8,2688.7,1.2864]
[1747975720920,0.05,2688.9,2688.7,1.2864]
[1747975721639,0.05,2688.9,2688.7,5.00557875]
[1747975721920,0.05,2688.9,2688.8,1.30055788]
[1747975722421,0.05,2688.9,2688.8,28.55855788]
[1747975722608,0.05,2688.9,2688.8,1.30055788]
[1747975722791,0.05,2688.9,2688.8,16.103]
[1747975723323,0.05,2688.9,2688.5,8.68946]
[1747975723629,0.05,2688.9,2688.8,16.103]
[1747975724118,0.05,2688.9,2688.8,27.255]
[1747975724418,3.76899289,2688.9,2688.8,27.255]
[1747975724579,0.05,2688.9,2688.8,27.255]
[1747975724779,0.05,2688.9,2688.5,8.0]
[1747975724979,0.05,2688.9,2688.6,27.252]
[1747975725204,3.71926953,2688.7,2688.6,27.252]
[1747975725487,3.71954621,2688.5,2688.4,16.1]
[1747975725679,0.05,2688.9,2688.5,0.55]
[1747975725920,0.05,2688.9,2688.8,3.71913121]
[1747975726087,0.05,2688.9,2688.8,43.304]
[1747975726284,1.82544785,2689.6,2688.8,24.055]
[1747975726488,3.71818497,2689.5,2688.9,35.249]
[1747975726705,1.3562,2690.5,2689.1,0.55]
[1747975726897,3.71709451,2690.3,2689.6,8.0]
[1747975727108,5.07302237,2690.5,2689.7,30.96677207]
[1747975727294,3.71702321,2690.4,2689.8,16.055]
[1747975727515,4.10807177,2690.8,2689.8,17.665]
[1747975727723,3.71709377,2690.3,2689.8,43.304]
[1747975727921,3.71695735,2690.4,2689.8,43.304]
[1747975728424,3.71706773,2690.3,2689.8,43.304]
[1747975728606,3.7169616,2690.4,2689.8,43.304]
[1747975728815,3.71737435,2690.1,2689.8,43.297]
[1747975729137,1.3041,2690.4,2689.8,43.297]
[1747975729434,3.71731721,2690.2,2689.8,43.297]
[1747975729602,1.3041,2690.4,2689.8,16.055]
[1747975729603,3.76761032,2689.9,2689.8,16.055]
[1747975729803,3.76761032,2689.9,2689.8,43.297]
[1747975730529,3.76761032,2689.9,2689.8,16.055]
[1747975730761,3.76761032,2689.9,2689.8,32.15]
[1747975730892,3.76761032,2689.9,2689.8,43.297]
[1747975731091,3.76761032,2689.9,2689.8,16.055]
[1747975731299,3.71774853,2689.8,2688.0,5.61751784]
[1747975731608,1.3127,2689.3,2688.4,43.59751279]
[1747975731811,3.71869694,2689.2,2688.5,0.31050124]
[1747975732059,3.71926953,2688.7,2688.6,16.092]
[1747975732360,3.71926953,2688.7,2688.6,16.4024897]
[1747975732663,0.50313969,2689.1,2688.6,16.4024897]
[1747975732814,3.71913121,2688.8,2688.7,0.31047815]
[1747975733735,3.71913121,2688.8,2688.7,24.40247815]
[1747975733930,3.71885459,2689.0,2688.7,24.40247815]
[1747975734123,3.71913121,2688.8,2688.7,24.40247815]
[1747975735053,1.3127,2689.3,2688.8,8.0]
[1747975735235,3.71883746,2689.1,2688.8,8.0]
[1747975735829,3.71862908,2689.2,2688.8,8.0]
[1747975736650,3.71833572,2689.4,2688.8,8.0]
[1747975736849,3.71845521,2689.3,2688.8,8.0]
[1747975737253,3.7187365,2689.1,2688.8,8.0]
[1747975737748,3.7187365,2689.1,2688.9,8.0]
[1747975737948,3.71871629,2689.1,2689.0,16.093]
[1747975738649,0.43601574,2689.4,2689.0,16.093]
[1747975738826,3.71871629,2689.1,2689.0,16.093]
[1747975739020,3.71863508,2689.2,2689.0,16.093]
[1747975739222,3.71848361,2689.3,2689.0,16.093]
[1747975739422,3.71859079,2689.2,2689.0,16.093]
[1747975739636,3.71846967,2689.3,2689.0,16.093]
[1747975740058,3.71816322,2689.5,2689.0,16.093]
[1747975740221,3.71824981,2689.5,2689.1,8.0]
[1747975740416,3.71824981,2689.5,2689.0,8.0]
[1747975740616,3.71824981,2689.5,2689.1,16.092]
[1747975740939,0.05,2689.9,2689.6,3.71794079]
[1747975741261,0.05,2689.9,2689.7,55.00288389]
[1747975741430,0.05,2689.9,2689.8,13.36174409]
[1747975741637,1.0,2690.0,2689.9,11.71761032]
[1747975741834,4.10807177,2690.8,2690.2,8.0]
[1747975742018,4.10807177,2690.8,2690.4,8.0]
[1747975742224,4.10807177,2690.8,2690.4,19.145]
[1747975742563,3.71669841,2690.6,2690.4,19.145]
[1747975742763,4.10807177,2690.8,2690.4,19.145]
[1747975743269,4.10807177,2690.8,2690.6,8.0]
[1747975743424,4.10807177,2690.8,2690.7,24.045]
[1747975743627,4.10807177,2690.8,2690.7,51.276]
[1747975743828,4.10807177,2690.8,2690.7,24.045]
[1747975744025,4.10807177,2690.8,2690.7,51.276]
[1747975744268,4.10393603,2690.8,2690.7,51.276]
[1747975744679,4.10393603,2690.8,2690.7,25.68899556]
[1747975744885,7.8203029,2690.8,2690.7,51.276]
[1747975745487,4.10393603,2690.8,2690.7,51.276]
[1747975745992,0.05,2690.9,2690.7,51.276]
[1747975746147,0.05,2690.9,2690.8,8.0]
[1747975746644,0.05,2690.9,2690.8,11.71636687]
[1747975746849,0.05,2690.9,2690.8,8.0]
[1747975747170,0.05,2690.9,2690.8,11.71636687]
[1747975747360,0.05,2690.9,2690.8,38.90136687]
[1747975747759,0.05,2690.9,2690.8,8.0]
[1747975747982,0.05,2690.9,2690.8,35.185]
[1747975748788,0.05,2690.9,2690.8,8.0]
[1747975749158,3.76622877,2690.9,2690.8,35.183]
[1747975749707,0.05,2690.9,2690.8,35.183]
[1747975750578,3.76622877,2690.9,2690.8,35.181]
[1747975751074,3.76622877,2690.9,2690.8,8.0]
[1747975751280,0.05,2690.9,2690.8,35.181]
[1747975751997,3.76622877,2690.9,2690.8,35.181]
[1747975752299,3.76622877,2690.9,2690.8,8.0]
[1747975752606,0.05,2690.9,2690.8,8.0]
[1747975752781,0.05,2690.9,2690.8,35.179]
[1747975752981,3.76622877,2690.9,2690.8,35.179]
[1747975753316,0.05,2690.9,2690.8,35.179]
[1747975754189,3.76622877,2690.9,2690.8,35.179]
[1747975754697,0.05,2690.9,2690.8,35.179]
[1747975755263,0.05,2690.9,2690.8,8.0]
[1747975755465,0.05,2690.9,2690.8,35.178]
[1747975756380,0.05,2690.9,2690.8,8.0]
[1747975756587,0.05,2690.9,2690.8,35.178]
[1747975757005,0.05,2690.9,2690.8,8.0]
[1747975757210,0.05,2690.9,2690.8,35.178]
[1747975759120,0.05,2690.9,2690.8,8.0]
[1747975759320,5.09529887,2691.5,2691.0,8.0]
[1747975759482,3.7160064,2691.1,2690.9,8.0547]
[1747975759681,3.71616718,2691.0,2690.8,8.0]
[1747975759931,3.71616718,2691.0,2690.9,8.0]
[1747975760228,3.71583803,2691.2,2691.0,8.0]
[1747975760441,5.09520868,2691.5,2691.0,8.0]
[1747975760604,3.7155006,2691.5,2691.0,8.0]
[1747975760778,1.3137,2691.8,2691.0,8.0]
[1747975761088,1.3137,2691.8,2690.9,16.0937]
[1747975761089,3.71553982,2691.4,2690.9,0.0547]
[1747975761421,1.3137,2691.8,2690.9,0.0547]
[1747975761422,3.71540329,2691.5,2691.2,8.0]
[1747975761637,3.71513628,2691.7,2691.2,8.0]
[1747975761935,3.71551478,2691.5,2691.4,8.0]
[1747975763685,3.71571583,2691.3,2690.9,9.66467]
[1747975764001,3.71552599,2691.5,2691.1,8.0]
[1747975764337,1.3137,2691.8,2691.3,8.0]
[1747975764541,3.71562693,2691.4,2691.3,8.0]
[1747975764901,3.71548077,2691.5,2691.3,8.0]
[1747975765095,3.71568791,2691.3,2691.1,8.0]
[1747975765340,3.71558483,2691.4,2691.2,8.0]
[1747975765622,3.71555957,2691.4,2691.3,16.038]
[1747975766233,5.01243639,2691.5,2691.4,8.0]
[1747975766791,5.01247898,2691.5,2691.4,24.037]
[1747975767225,5.01240033,2691.5,2691.4,24.037]
[1747975767712,3.71540033,2691.5,2691.4,35.173]
[1747975768119,3.71540033,2691.5,2691.4,8.0]
[1747975768436,3.71540033,2691.5,2691.4,35.173]
[1747975768632,3.71540033,2691.5,2691.4,8.0]
[1747975768840,3.71540033,2691.5,2691.4,35.173]
[1747975769888,3.71540033,2691.5,2691.4,19.136]
[1747975770092,3.71540033,2691.5,2691.4,35.173]
[1747975771755,3.71540033,2691.5,2691.4,24.037]
[1747975772060,3.71540033,2691.5,2691.4,35.172]
[1747975772418,3.71540033,2691.5,2691.1,0.59197493]
[1747975772419,3.7158145,2691.2,2691.1,8.59197493]
[1747975772656,3.7158145,2691.2,2691.1,35.76397493]
[1747975773419,3.7158145,2691.2,2691.1,35.76297493]
[1747975774053,3.7158145,2691.2,2691.1,8.0]
[1747975774367,3.7158145,2691.2,2691.1,24.036]
[1747975775370,3.7158145,2691.2,2691.1,8.0]
[1747975775523,3.7158145,2691.2,2691.1,24.036]
[1747975775719,3.7158145,2691.2,2691.1,8.0]
[1747975775933,3.7158145,2691.2,2691.1,24.0]
[1747975776340,0.6,2691.9,2691.1,24.0]
[1747975776341,0.05,2691.9,2691.3,0.55]
[1747975776575,0.05,2691.9,2691.5,8.0]
[1747975776759,0.05,2691.9,2691.6,27.135]
[1747975776959,3.76486677,2691.9,2691.8,8.0]
[1747975777194,3.76486677,2691.9,2691.8,8.59197493]
[1747975777496,3.76486677,2691.9,2691.8,35.72697493]
[1747975777776,3.76486677,2691.9,2691.8,24.59197493]
[1747975778358,3.76486677,2691.9,2691.8,8.59197493]
[1747975778569,5.61620315,2691.9,2691.8,24.0]
[1747975778875,3.71498625,2691.8,2691.7,16.035]
[1747975779096,3.71512427,2691.7,2691.6,0.59197493]
[1747975779246,5.57992427,2691.7,2691.6,0.59197493]
[1747975779441,3.71553838,2691.4,2691.3,0.44420128]
[1747975781150,3.71553838,2691.4,2691.3,16.44320128]
[1747975781691,3.7158145,2691.2,2691.1,0.44420128]
[1747975781837,3.7158145,2691.2,2691.1,8.44420128]
[1747975782043,5.0796145,2691.2,2691.1,24.44320128]
[1747975782737,5.0796145,2691.2,2691.1,0.44420128]
[1747975782962,6.36785282,2691.2,2691.1,0.44420128]
[1747975783169,6.91785282,2691.2,2691.1,0.44420128]
[1747975783567,3.71609067,2691.0,2690.9,0.59197493]
[1747975783756,5.64132877,2690.9,2690.8,0.44428104]
[1747975783974,6.43953325,2690.9,2690.8,0.44428104]
[1747975785085,3.71650499,2690.7,2690.5,15.999]
[1747975785283,3.71664312,2690.6,2690.5,23.999]
[1747975785456,3.71664312,2690.6,2690.5,8.0]
[1747975785658,4.83159476,2690.6,2690.5,8.0]
[1747975786746,4.83159476,2690.6,2690.1,27.76297493]
[1747975786747,3.71719574,2690.2,2690.1,0.59197493]
[1747975786942,5.59439574,2690.2,2690.1,0.59197493]
[1747975787172,3.71747211,2690.0,2689.9,16.59297493]
[1747975787383,4.59367296,2690.0,2689.9,0.59197493]
[1747975787586,5.14367296,2690.0,2689.9,0.59197493]
[1747975787755,6.47087296,2690.0,2689.9,0.59197493]
[1747975788462,3.71802498,2689.6,2689.5,32.037]
[1747975788671,3.71802498,2689.6,2689.5,40.037]
[1747975788855,3.71802498,2689.6,2689.5,32.037]
[1747975789069,3.71802498,2689.6,2689.5,40.037]
[1747975789447,3.71802498,2689.6,2689.5,32.037]
[1747975789650,0.87620085,2690.0,2689.6,8.0]
[1747975789861,3.71719574,2690.2,2689.6,8.5093]
[1747975790074,1.3604,2690.3,2689.7,11.138]
[1747975790075,3.71758197,2690.0,2689.7,11.138]
[1747975790387,3.71718075,2690.3,2689.8,8.0]
[1747975790571,3.71749407,2690.0,2689.8,8.0]
[1747975792188,3.71742337,2690.1,2689.8,8.0]
[1747975792889,1.39,2690.8,2689.8,8.0]
[1747975793086,3.71682398,2690.5,2690.0,0.5093]
[1747975793254,3.71696654,2690.4,2690.2,8.0]
[1747975793765,3.71705757,2690.3,2690.2,8.0]
[1747975794285,3.71697928,2690.4,2690.2,8.0]
[1747975794581,3.71658736,2690.7,2690.4,8.0]
[1747975795361,3.71667407,2690.6,2690.4,8.0]
[1747975796097,3.71678126,2690.5,2690.4,8.0]
[1747975796493,0.37167813,2690.5,2690.0,0.5093]
[1747975796692,3.71691941,2690.4,2690.3,24.005]
[1747975797395,3.71691941,2690.4,2690.3,8.0]
[1747975797698,3.71691941,2690.4,2690.3,24.004]
[1747975799884,3.71788675,2689.7,2689.6,0.97697493]
[1747975800073,3.71788675,2689.7,2689.6,36.11897493]
[1747975800858,3.71788675,2689.7,2689.6,35.73597493]
[1747975801665,3.71788675,2689.7,2689.6,24.59697493]
[1747975802066,3.71788675,2689.7,2689.6,24.005]
[1747975804207,3.7178272,2689.8,2689.6,24.57118571]
[1747975804376,3.71787181,2689.8,2689.6,24.57118571]
[1747975804706,3.71757871,2690.0,2689.7,8.56618571]
[1747975804909,3.71754299,2690.0,2689.7,8.56618571]
[1747975805110,3.71774853,2689.8,2689.7,8.56618571]
[1747975805274,3.71774853,2689.8,2689.6,8.0]
[1747975805476,3.71774853,2689.8,2689.7,35.146]
[1747975805814,3.71761699,2689.9,2689.7,35.146]
[1747975806110,3.71752293,2690.0,2689.7,0.26718232]
[1747975806308,3.71752293,2690.0,2689.8,15.974]
[1747975806680,3.71705238,2690.4,2689.8,16.359]
[1747975806908,3.71701493,2690.4,2689.8,20.07674343]
[1747975807205,3.71708819,2690.3,2689.9,0.54126876]
[1747975807411,3.71708819,2690.3,2690.0,11.14]
[1747975807773,3.71707584,2690.3,2690.0,11.14]